Cogmind - Beta 12 X4 --- EXPLORER MODE // 2022.10.01 @ 20:56:24 Player: Sardaukar Result: Destroyed by as-44208 with Assembled Heavy Rifle Performance ------------- Evolutions (0) 0 Regions Visited (2) 400 Robots Destroyed (11) 55 Value Destroyed (232) 232 Prototype IDs (4) 80 Alien Tech Used (0) 0 Bonus (0) 0 TOTAL SCORE: 767 Bonus ------- None Cogmind --------- Core Integrity 0/250 Matter 239/300 Energy 97/100 System Corruption 0% Temperature Cool (0) Movement Core (350) Ox6 Location -10/Mines Parts ------- > --- POWER (1) -------- (None) > --- PROPULSION (2) --- (None) > --- UTILITY (3) ------ Large Storage Unit Targeting Computer > --- WEAPON (2) ------- (None) > --- INVENTORY (15) --- Medium Storage Unit Light Armor Plating Peak State ------------ > --- POWER ------------ Light Ion Engine > --- PROPULSION ------- Light Treads Light Treads > --- UTILITY ---------- Medium Storage Unit Sensor Array Light Armor Plating > --- WEAPON ----------- EM Pulse Gun Light Assault Rifle > --- INVENTORY -------- Light Ion Engine Structural Scanner [Rating: 8] Favorites ----------- Power Light Ion Engine Engine Light Ion Engine Propulsion Light Treads Treads Light Treads Utility Sensor Array Device Sensor Array Storage Large Storage Unit Processor Targeting Computer Protection Light Armor Plating Weapon EM Pulse Gun Energy Gun EM Pulse Gun Ballistic Gun Light Assault Rifle Launcher Grenade Launcher Special Weapon Welding Torch Build | -11 -10 -10 ------- Run | Scr Mat Min Slots Evolved 1 | . 1 . Power . | . . . Propulsion . | . . . Utility 1 | . 1 . Weapon . | . . . Parts Attached 23 | 7 10 6 Power 2 | 1 . 1 Engine 2 | 1 . 1 Core . | . . . Reactor . | . . . Propulsion 10 | 2 6 2 Treads 10 | 2 6 2 Leg . | . . . Wheel . | . . . Hover . | . . . Flight . | . . . Utility 6 | 2 3 1 Device 2 | . 2 . Storage 2 | 1 1 . Processor 1 | . . 1 Hackware . | . . . Protection 1 | 1 . . Artifact . | . . . Weapon 5 | 2 1 2 Energy Gun 1 | 1 . . Energy Cannon . | . . . Ballistic Gun 2 | 1 . 1 Ballistic Cannon . | . . . Launcher 1 | . 1 . Special Weapon 1 | . . 1 Impact Weapon . | . . . Slashing Weapon . | . . . Piercing Weapon . | . . . Special Melee Weapon . | . . . Unidentified Prototypes . | . . . Parts Lost 11 | . . 11 Power 1 | . . 1 Propulsion 4 | . . 4 Utility 2 | . . 2 Weapon 4 | . . 4 Highest Loss Streak 11 | . . 11 To Critical Strikes 1 | . . 1 Average Slot Usage (%) 93 | . 95 86 Engine 11 | . 12 10 Treads 24 | . 24 22 Device 13 | . 12 19 Storage 12 | . 12 12 Protection 6 | . 8 . Energy Gun 11 | . 12 8 Ballistic Gun 7 | . 8 1 Launcher 3 | . 3 8 Naked Turns . | . . . Heaviest Build 30 | 19 30 30 Greatest Support 40 | 40 40 40 Greatest Overweight (x) 8 | 5 8 1 Average Overweight (x) . | . . . Largest Inventory Capacity 15 | 10 15 15 Average Capacity 13 | 9 13 15 Most Carried 8 | 2 8 7 Average Carried 4 | 1 4 5 Final Capacity 15 | 10 15 15 Final Carried 7 | 2 7 2 Class Distribution -------------------- 100% | Hacker-Mutant Dominant Class ---------------- Hacker-Mutant | -10/Materials Hacker-Mutant | -10/Mines Resources | -11 -10 -10 ----------- Run | Scr Mat Min Matter Collected 499 | 198 210 91 Remotely . | . . . Salvage Created 265 | . 252 13 Parts 16 | . 16 . Haulers Intercepted 1 | . 1 . Recyclers Shooed 1 | . 1 . Parts Field Recycled . | . . . Retrieved Matter . | . . . Parts Self-Destructed . | . . . Prevented . | . . . Kills | -11 -10 -10 ------- Run | Scr Mat Min Combat Hostiles Destroyed 10 | . 4 6 Guns 1 | . . 1 Cannons 1 | . . 1 AOE 8 | . 4 4 Classes Destroyed 9 | . 6 3 Worker 1 | . 1 . Tunneler 1 | . . 1 Hauler 1 | . 1 . Recycler 1 | . 1 . Watcher 2 | . 2 . Swarmer 2 | . 2 . Grunt 2 | . 2 . Demolisher 1 | . . 1 Assembled 5 | . . 5 Best Kill Streak 5 | . 4 5 Combat Bots Only 4 | . 2 4 Max Kills in Single Turn 2 | . 1 2 Gunslinging . | . . . Exploded 1 | . 1 1 Melee . | . . . Uniques/NPCs Destroyed . | . . . Combat | -11 -10 -10 -------- Run | Scr Mat Min Damage Taken 1186 | . 58 1128 Core 252 | . 3 249 Absorbed by Shields . | . . . Regen/Repaired (Parts) 51 | . 51 . Core Remaining (%) 100 | 100 . . Volleys Fired 45 | . 22 23 Largest 2 | . 2 2 Hottest 60 | . 60 50 Shots Fired 63 | . 38 25 Gun 45 | . 32 13 Cannon . | . . . Launcher 16 | . 6 10 Special 2 | . . 2 Kinetic 29 | . 16 13 Thermal 2 | . . 2 Explosive 16 | . 6 10 Electromagnetic 16 | . 16 . Robot Hit Streak 13 | . 13 12 Robot Miss Streak 1 | . 1 1 Penetration Max . | . . . Secondary Targets . | . . . Shots Hit Robots 48 | . 30 18 Core Hits 41 | . 17 24 Critical Kills . | . . . Critical Parts Destroyed . | . . . Critical Strikes . | . . . Melee Attacks . | . . . Impact . | . . . Slashing . | . . . Piercing . | . . . Sneak Attacks . | . . . Combat Hostiles . | . . . Follow-up Attacks . | . . . Damage Inflicted 1206 | . 710 496 Guns 389 | . 289 100 Cannons . | . . . Explosions 808 | . 421 387 Melee . | . . . Ramming 4 | . . 4 Kinetic 208 | . 108 100 Thermal 39 | . 34 5 Explosive 774 | . 387 387 Electromagnetic 181 | . 181 . Impact . | . . . Slashing . | . . . Piercing . | . . . Highest Corruption . | . . . Average Corruption . | . . . Corruption Purged . | . . . Corruption Blocked . | . . . Overload Shots . | . . . Overflow Damage . | . . . Projectiles . | . . . Explosions . | . . . Melee . | . . . Knockbacks . | . . . Impact . | . . . Kinetic . | . . . Secondary . | . . . Self-Inflicted Damage 45 | . . 45 Shots 4 | . . 4 Rammed 2 | . . 2 Targets Rammed 2 | . . 2 Kicked . | . . . Crushed . | . . . Highest Temperature 44 | . 44 . Average Temperature 17 | . 17 . Received Heat Transfer 38 | . 18 20 Siege Activations . | . . . Robots Corrupted . | . . . Combat Hostiles . | . . . Parts Fried 1 | . 1 . Impact Corruptions . | . . . Robots Melted . | . . . Combat Hostiles . | . . . Parts Melted . | . . . Heat Transferred 150 | . 100 50 Parts Sabotaged . | . . . Parts Stolen . | . . . Parts Stripped . | . . . Power Chain Reactions 1 | . 1 . Missiles Intercepted . | . . . Alert | -11 -10 -10 ------- Run | Scr Mat Min Peak Influence 244 | . 244 101 Initial 12 | . . 12 Average 34 | . 36 43 Maximum Alert Level 1 | . 1 . Low Security (%) 98 | 100 98 100 Level 1 1 | . 1 . Level 2 . | . . . Level 3 . | . . . Level 4 . | . . . Level 5 . | . . . High Security . | . . . Max Security . | . . . Squads Dispatched 1 | . 1 . Investigation 1 | . 1 . Extermination . | . . . Reinforcement . | . . . Assault . | . . . Garrison . | . . . Intercept . | . . . Searches Triggered . | . . . Construction Impeded . | . . . Haulers Reinforced . | . . . Active Scanning Responses . | . . . Cargo Convoy Interrupts . | . . . Stealth | -11 -10 -10 --------- Run | Scr Mat Min Distress Signals . | . . . Communications Jammed . | . . . Distress Signals . | . . . Times Spotted 24 | . 11 13 Peak Tracking Total 6 | . 4 6 Tactical Retreats . | . . . Traps | -11 -10 -10 ------- Run | Scr Mat Min Traps Triggered 4 | . 4 . Indirectly . | . . . Trap Hack Attempts . | . . . Triggered . | . . . Disarmed 6 | . 6 . Reprogrammed . | . . . Reused . | . . . Traps Extracted . | . . . Installed . | . . . Triggered . | . . . Machines | -11 -10 -10 ---------- Run | Scr Mat Min Machines Disabled 3 | . 3 . Max in Single Turn 1 | . 1 . Machines Sabotaged . | . . . Overloaded Fab Kills . | . . . Hacking | -11 -10 -10 --------- Run | Scr Mat Min Machines Accessed 8 | . 8 . Terminals 6 | . 6 . Fabricators . | . . . Repair Stations 1 | . 1 . Recycling Units 1 | . 1 . Scanalyzers . | . . . Garrison Access . | . . . Total Hacks 24 | . 24 . Successful 19 | . 19 . Failed 5 | . 5 . Catastrophic . | . . . Database Lockouts . | . . . Manual 8 | . 8 . Terminals 20 | . 20 . Fabricators . | . . . Repair Stations 3 | . 3 . Recycling Units 1 | . 1 . Scanalyzers . | . . . Garrison Access . | . . . Terminal Hacks 15 | . 15 . Record 1 | . 1 . Robot Analysis 2 | . 2 . Prototype ID Bank 2 | . 2 . Level Access Points 1 | . 1 . Terminal Index 1 | . 1 . Alert Level 1 | . 1 . Unreport Threat 1 | . 1 . Locate Traps 1 | . 1 . Disarm Traps 1 | . 1 . Patrol Status 1 | . 1 . Recall Investigation 1 | . 1 . Zone Layout 2 | . 2 . Fabricator Hacks . | . . . Repair Station Hacks 2 | . 2 . Scan Component 1 | . 1 . Repair 1 | . 1 . Recycling Unit Hacks . | . . . Scanalyzer . | . . . Garrison Access Hacks . | . . . Unauthorized Hacks 2 | . 2 . Terminals . | . . . Fabricators . | . . . Repair Stations 1 | . 1 . Mechanics 1 | . 1 . Recycling Units 1 | . 1 . Tunnel 1 | . 1 . Scanalyzers . | . . . Garrison Access . | . . . Data Cores Recovered . | . . . Used . | . . . Hacking Detections 7 | . 7 . Full Trace Events 2 | . 2 . Feedback Events . | . . . Feedback Blocked . | . . . Robot Schematics Acquired . | . . . Robots Built . | . . . Authchips . | . . . Time . | . . . Total Robot Build Rating . | . . . Part Schematics Acquired . | . . . Parts Built . | . . . Authchips . | . . . Time . | . . . Total Part Build Rating . | . . . Parts Repaired 1 | . 1 . Time 26 | . 26 . Parts Recycled . | . . . Recycled Matter . | . . . Retrieved Matter . | . . . Retrieved Components . | . . . Parts Scanalyzed . | . . . Part Schematics Acquired . | . . . Parts Damaged . | . . . Bothacking | -11 -10 -10 ------------ Run | Scr Mat Min Used RIF Installer . | . . . Robots Hacked . | . . . Non-combat . | . . . Combat . | . . . Robot Hacks Applied . | . . . Relay Couplers Released . | . . . Fabnet Peak Effective % . | . . . Robots Rewired . | . . . Allies Hacked . | . . . Hacks Repelled . | . . . Allies | -11 -10 -10 -------- Run | Scr Mat Min Total Allies . | . . . Largest Group . | . . . Highest-Rated Group . | . . . Highest-Rated Ally . | . . . Total Orders . | . . . Ally Attacks . | . . . Total Damage . | . . . Kills . | . . . Allies Corrupted . | . . . Allies Melted . | . . . Intel | -11 -10 -10 ------- Run | Scr Mat Min Robot Analysis Total 2 | . 2 . Derelict Logs Recovered . | . . . Drone Launches . | . . . Drone Recoveries . | . . . Exploration | -11 -10 -10 ------------- Run | Scr Mat Min Turns Passed 1205 | 84 940 181 Spaces Moved 640 | 44 518 78 Core 15 | 13 2 . Treads 625 | 31 516 78 Legs . | . . . Wheels . | . . . Hover . | . . . Flight . | . . . Fastest Speed 50 | 50 160 160 Average Speed 161 | 166 161 161 Slowest Speed 450 | 300 450 240 Overloaded Moves . | . . . Propulsion Burnouts . | . . . Robots Hopped . | . . . Cave-ins Triggered . | . . . Exploration Rate (%) 35 | 4 90 13 Regions Visited 2 Branch Regions 1 Pre-discovered Areas 1 | . 1 . Known Exits Taken 2 | 1 1 . Unknown Exits Taken . | . . . Scrap Searched . | . . . Spaces Dug . | . . . Terrain Destroyed 90 | . 50 40 Melee . | . . . Projectile . | . . . AOE 90 | . 50 40 Terrain Rammed . | . . . Walls Destroyed . | . . . Machines Disabled . | . . . Actions | -11 -10 -10 --------- Run | Scr Mat Min Total 744 | 52 583 109 Wait 30 | . 30 . Move 638 | 43 517 78 Hop . | . . . Pick Up 6 | 2 4 . Fast Attach 11 | 7 3 1 Attach 7 | . 2 5 Detach . | . . . Swap 5 | . 5 . Drop . | . . . Fire 45 | . 22 23 Melee . | . . . Ram . | . . . Kick . | . . . Crush 2 | . . 2 Escape Stasis . | . . . Rewire . | . . . Trap . | . . . Miscellaneous . | . . . Route ------- -11/Scrapyard -10/Materials (discovered 5 exits: *Mat x3 / *Min x2) -10/Mines History --------- Turn | Location | Event 21 | -11/Scrapyard | Identified exit to Materials 21 | -11/Scrapyard | Discovered exit to Materials (range 15) 85 | -11/Scrapyard | Entered Materials 85 | -10/Materials | Evolved 1 slot: Utility x1 172 | -10/Materials | Identified exit to Mines 172 | -10/Materials | Discovered exit to Mines (range 10) 314 | -10/Materials | Build established: Hacker-Mutant 329 | -10/Materials | Identified exit to Materials 329 | -10/Materials | Discovered exit to Materials (range 16) 511 | -10/Materials | Discovered exit to Mines (range 6) 750 | -10/Materials | Discovered exit to Materials (range 5) 926 | -10/Materials | Repaired Lgt. Treads 1025 | -10/Materials | Entered Mines 1074 | -10/Mines | Assembled infested the area 1165 | -10/Mines | Core integrity fell below 50% 1192 | -10/Mines | Core integrity fell below 20% 1206 | -10/Mines | Destroyed by as-44208 with Assembled Heavy Rifle Last Messages --------------- 01178_ K-01 Serf collects debris. 01179_ U-05 Engineer lays Concrete. 01179_ K-01 Serf destroyed. 01181_ U-05 Engineer lays Concrete. 01183_ Acquired 19 matter. 01184_ U-05 Engineer lays Concrete. 01186_ The unstable cave ceiling collapses. 01186_ U-05 Engineer lays Concrete. 01188_ The unstable cave ceiling collapses. 01192_ R-06 Scavenger collects Wheel. 01196_ R-06 Scavenger suffers critical hit (Destroy). 01196_ R-06 Scavenger destroyed. 01197_ R-06 Scavenger collects Lgt. Ion Engine. 01197_ Acquired Welding Torch. 01199_ R-06 Scavenger collects Wheel. 01200_ Lgt. Ion Engine severed. 01201_ as-37187 destroyed. 01202_ Welding Torch destroyed. 01203_ as-49719 destroyed. 01205_ Lgt. Treads destroyed. Map ----- +----------------------------------------------------+ | ?????????????????????????????????????????????????? | | ?????????????????????????????????????????????????? | | ?????????????????????????????????????????????????? | | ?????????????????????????????????????????????????? | | ?????????????????????????????????????????????????? | | ?????????????????????????????????????????????????? | | ?????????????????????????????????????????????????? | | ?????????????????????????????????????????????????? | | ?????????????????????????????????????????????????? | | ?????????????????????????????????????????????????? | | ??????????????????? ?????????????????????????????? | | ????????????????? ???????????????????????????? | | ?????????????????## ??????????????????????????? | | ?????????????????# ?????????????????????????? | | ???????????????### #?????????????????????????? | | ??????????????#### ##?????????????????????????? | | ??????????????### ###?????????????????????????? | | ??????????????## ##??????????????????????????? | | ???????######### ##??????????????????????????? | | ??????########## ##???????#####??????????????? | | ???###### ###???????#####??????????????? | | ??######## ###????????## ??????????????? | | ??### ## ###??###???## ##??????????????? | | ?### # ###### ###?## ##??????????????? | | ?### # ##### ##??????????????? | | ?## @ ####%##??????????????? | | ?## # a a% ##??????????????? | | ### # !%* a ##??????????????? | | ## # %=a=########??????????????? | | # ### %!% ########??????????????? | | ##### # %###???????????????????? | | #### ######### ###% ####???????????????????? | | ##### ####?######### %###????????????????????? | | ###?## ###??????##### #####?????????????????????? | | ###??## ##??????????## #####?????????????????????? | | ???## ##??????????## ??????????????????????????? | | ????? ##???????????????????????????????????????? | | ??????####???????????????????????????????????????? | | ??????####???????????????????????????????????????? | | ?????????????????????????????????????????????????? | | ?????????????????????????????????????????????????? | | ?????????????????????????????????????????????????? | | ?????????????????????????????????????????????????? | | ?????????????????????????????????????????????????? | | ?????????????????????????????????????????????????? | | ?????????????????????????????????????????????????? | | ?????????????????????????????????????????????????? | | ?????????????????????????????????????????????????? | | ?????????????????????????????????????????????????? | | ?????????????????????????????????????????????????? | +----------------------------------------------------+ Best States ------------- Heat Dissipation 25 Energy Generation 10 Energy Capacity 125 Matter Stores 300 Matter Capacity 300 Sight Range 16 Robot Scan Range 14 Terrain Scan Density 10 Armor Coverage 150 Resistance: KI 35 Resistance: TH 35 Resistance: EX 35 Resistance: EM 35 Resistance: I 35 Resistance: S 35 Resistance: P 35 Evasion (%) 40 Targeting Accuracy 5 Recoil Reduction 2 Offensive Hacking 20 Item Schematics ----------------- None Robot Schematics ------------------ None Fabricated ------------ Nothing Alien Tech Used ----------------- None Achievements -------------- None Challenges ------------ None Game ------ Seed TargetAuthchipArray Manual? 0 Play Time 00:14:33 Cumulative 238.0 hours Start 2022.10.01 @ 19:35:17 End 2022.10.01 @ 20:56:24 Sessions 5 Manual Loads 0 Difficulty Explorer Special Mode None Game No. 67 Rogue 0 Adventurer 59 Explorer 8 Win Type - Total 4 Types 3/0/1/0/0/0/0/0/0 Lore% 61 Gallery% 73 Achievement% 54 Wizard Run 0 Options --------- ASCII 0 Keyboard 0 Movement Mouse Keybinds 0 Fullscreen 2 Font 20/Terminus Map View 66x50 Tactical HUD 1 Map Filters NONE Filters NONE Steam 1 RUN: c6606c5f-675b-4114-9870-e5783fc90230